[Event "*** Titled Tuesday Blitz"]
[Site "Chess.com"]
[Date "2020.12.29"]
[Round "5"]
[White "Arseniy_Nesterov"]
[Black "FairChess_on_YouTube"]
[Result "1-0"]
[WhiteElo "2786"]
[BlackElo "2995"]
[TimeControl "180+1"]
[EndTime "10:55:45 PST"]
[Termination "Arseniy_Nesterov won by resignation"]

1. d4 {[%clk 0:03:00.9]} 1... Nf6 {[%clk 0:02:59.5]} 2. c4 {[%clk 0:03:00.8]}
2... e6 {[%clk 0:02:59.3]} 3. Nf3 {[%clk 0:03:00.6]} 3... a6 {[%clk 0:02:57]} 4.
Nc3 {[%clk 0:03:00.4]} 4... d5 {[%clk 0:02:57.3]} 5. cxd5 {[%clk 0:03:00.8]}
5... exd5 {[%clk 0:02:57.9]} 6. Bg5 {[%clk 0:03:00.7]} 6... Be6 {[%clk
0:02:57.2]} 7. Bxf6 {[%clk 0:03:00.9]} 7... Qxf6 {[%clk 0:02:56.7]} 8. Qb3
{[%clk 0:03:01.5]} 8... Ra7 {[%clk 0:02:54.4]} 9. g3 {[%clk 0:03:01.7]} 9... Qd8
{[%clk 0:02:48.1]} 10. h4 {[%clk 0:03:01.6]} 10... Be7 {[%clk 0:02:42.3]} 11.
Ng5 {[%clk 0:03:01.5]} 11... Bxg5 {[%clk 0:02:38.6]} 12. hxg5 {[%clk 0:03:02.4]}
12... Nd7 {[%clk 0:02:29.2]} 13. Bg2 {[%clk 0:02:26.9]} 13... c6 {[%clk
0:02:26.1]} 14. f4 {[%clk 0:02:26.4]} 14... Qb6 {[%clk 0:02:09.7]} 15. Qxb6
{[%clk 0:02:05.6]} 15... Nxb6 {[%clk 0:02:10.6]} 16. O-O-O {[%clk 0:02:02.5]}
16... Nc4 {[%clk 0:02:08.7]} 17. Bf3 {[%clk 0:01:58.1]} 17... b5 {[%clk
0:01:57.7]} 18. b3 {[%clk 0:01:43]} 18... Nd6 {[%clk 0:01:55.8]} 19. e4 {[%clk
0:01:32.9]} 19... dxe4 {[%clk 0:01:37.1]} 20. Nxe4 {[%clk 0:01:32.7]} 20... Nxe4
{[%clk 0:01:33.2]} 21. Bxe4 {[%clk 0:01:32.8]} 21... Ke7 {[%clk 0:01:33.7]} 22.
Bxc6 {[%clk 0:01:16.1]} 22... Rc8 {[%clk 0:01:20.4]} 23. d5 {[%clk 0:01:13.6]}
23... Bxd5 {[%clk 0:01:19.3]} 24. Rxd5 {[%clk 0:01:13.5]} 24... Rxc6+ {[%clk
0:01:19.1]} 25. Kb2 {[%clk 0:01:12.6]} 25... Rac7 {[%clk 0:01:14.9]} 26. Re5+
{[%clk 0:00:47.7]} 26... Re6 {[%clk 0:01:03.4]} 27. Rxe6+ {[%clk 0:00:39.2]}
27... Kxe6 {[%clk 0:01:04.3]} 28. Rxh7 {[%clk 0:00:39.2]} 28... g6 {[%clk
0:01:04.7]} 29. g4 {[%clk 0:00:37.9]} 29... Rd7 {[%clk 0:00:42.5]} 30. Kc3
{[%clk 0:00:31.3]} 30... a5 {[%clk 0:00:35.4]} 31. Rh6 {[%clk 0:00:23.9]} 31...
b4+ {[%clk 0:00:28.4]} 32. Kc4 {[%clk 0:00:22.6]} 32... Rd2 {[%clk 0:00:28.1]}
33. f5+ {[%clk 0:00:22.2]} 33... Ke5 {[%clk 0:00:27.6]} 34. fxg6 {[%clk
0:00:20.5]} 34... fxg6 {[%clk 0:00:28.5]} 35. Rxg6 {[%clk 0:00:20.9]} 35... Rxa2
{[%clk 0:00:29]} 36. Ra6 {[%clk 0:00:19.6]} 36... Rc2+ {[%clk 0:00:24.3]} 37.
Kb5 {[%clk 0:00:19.7]} 37... Kd4 {[%clk 0:00:17.1]} 38. Rxa5 {[%clk 0:00:09.7]}
38... Kc3 {[%clk 0:00:16.2]} 39. Ra4 {[%clk 0:00:09.1]} 39... Re2 {[%clk
0:00:10.7]} 40. Rxb4 {[%clk 0:00:09.2]} 40... Re5+ {[%clk 0:00:11.2]} 41. Ka4
{[%clk 0:00:09.7]} 41... Rxg5 {[%clk 0:00:11.4]} 42. Rc4+ {[%clk 0:00:09.8]}
42... Kd3 {[%clk 0:00:12.1]} 43. Kb4 {[%clk 0:00:09.3]} 43... Rg8 {[%clk
0:00:12.1]} 44. Rf4 {[%clk 0:00:08.9]} 44... Rb8+ {[%clk 0:00:11.9]} 45. Ka3
{[%clk 0:00:08.9]} 45... Kc3 {[%clk 0:00:08.8]} 46. Rc4+ {[%clk 0:00:08.9]}
46... Kd3 {[%clk 0:00:09]} 47. g5 {[%clk 0:00:08]} 47... Ra8+ {[%clk 0:00:09.3]}
48. Kb2 {[%clk 0:00:08.1]} 48... Rh8 {[%clk 0:00:09.8]} 49. Rg4 {[%clk
0:00:08.6]} 49... Rh2+ {[%clk 0:00:09.3]} 50. Ka3 {[%clk 0:00:08.6]} 50... Rh7
{[%clk 0:00:07.1]} 51. g6 {[%clk 0:00:08.6]} 51... Rg7 {[%clk 0:00:07.7]} 52.
Ka4 {[%clk 0:00:08.2]} 52... Ke3 {[%clk 0:00:06.1]} 53. b4 {[%clk 0:00:08.3]}
53... Kf3 {[%clk 0:00:06.7]} 54. Rg1 {[%clk 0:00:08.5]} 54... Ke4 {[%clk
0:00:06.6]} 55. b5 {[%clk 0:00:08.4]} 55... Kd5 {[%clk 0:00:07.1]} 56. Ka5
{[%clk 0:00:08.7]} 56... Kc5 {[%clk 0:00:07.1]} 57. Rg5+ {[%clk 0:00:08.8]}
57... Kc4 {[%clk 0:00:06.8]} 58. b6 {[%clk 0:00:08]} 1-0

[Event "*** Titled Tuesday Blitz"]
[Site "Chess.com"]
[Date "2020.12.29"]
[Round "5"]
[White "NMShanMeruga"]
[Black "gahryman"]
[Result "1-0"]
[WhiteElo "2438"]
[BlackElo "2677"]
[TimeControl "180+1"]
[EndTime "10:55:48 PST"]
[Termination "NMShanMeruga won by resignation"]

1. d4 {[%clk 0:03:00.9]} 1... Nf6 {[%clk 0:02:59.2]} 2. Nf3 {[%clk 0:02:20.4]}
2... g6 {[%clk 0:02:56.5]} 3. b3 {[%clk 0:02:06.8]} 3... Bg7 {[%clk 0:02:55.7]}
4. Bb2 {[%clk 0:02:07.7]} 4... O-O {[%clk 0:02:56.4]} 5. c4 {[%clk 0:02:04.1]}
5... d6 {[%clk 0:02:57.3]} 6. Nc3 {[%clk 0:01:58.3]} 6... Nbd7 {[%clk
0:02:55.1]} 7. e3 {[%clk 0:01:56.3]} 7... e5 {[%clk 0:02:55.1]} 8. Be2 {[%clk
0:01:54.5]} 8... Re8 {[%clk 0:02:52.4]} 9. O-O {[%clk 0:01:52.8]} 9... e4 {[%clk
0:02:45.9]} 10. Nd2 {[%clk 0:01:49.9]} 10... Nf8 {[%clk 0:02:46]} 11. d5 {[%clk
0:01:46.2]} 11... h5 {[%clk 0:02:39.3]} 12. b4 {[%clk 0:01:43.4]} 12... h4
{[%clk 0:02:29.4]} 13. h3 {[%clk 0:01:40.9]} 13... N8h7 {[%clk 0:02:28.8]} 14.
a4 {[%clk 0:01:37.3]} 14... Ng5 {[%clk 0:02:28.3]} 15. a5 {[%clk 0:01:33.1]}
15... a6 {[%clk 0:02:27.8]} 16. Na4 {[%clk 0:01:26.7]} 16... Bf5 {[%clk
0:02:18.4]} 17. Kh1 {[%clk 0:01:21.4]} 17... Qd7 {[%clk 0:02:11.4]} 18. Ra2
{[%clk 0:01:08.7]} 18... Re7 {[%clk 0:01:34.4]} 19. Qa1 {[%clk 0:01:05.7]} 19...
Ne8 {[%clk 0:01:27.7]} 20. Bxg7 {[%clk 0:01:03]} 20... Nxg7 {[%clk 0:01:25.8]}
21. Qf6 {[%clk 0:01:01.7]} 21... Nh7 {[%clk 0:01:16.1]} 22. Qxh4 {[%clk
0:01:00.8]} 22... Rae8 {[%clk 0:01:15.3]} 23. g4 {[%clk 0:00:46.7]} 23... g5
{[%clk 0:01:13.7]} 24. Qg3 {[%clk 0:00:47.1]} 24... Bg6 {[%clk 0:01:13.3]} 25.
Kg2 {[%clk 0:00:48]} 25... f5 {[%clk 0:01:07.9]} 26. Nc3 {[%clk 0:00:44.7]}
26... Rf7 {[%clk 0:01:04.2]} 27. Bd1 {[%clk 0:00:38.2]} 27... f4 {[%clk
0:01:03.7]} 28. exf4 {[%clk 0:00:36.6]} 28... gxf4 {[%clk 0:01:03.4]} 29. Qh4
{[%clk 0:00:36.2]} 29... Re5 {[%clk 0:00:53.6]} 30. Ba4 {[%clk 0:00:32.3]} 30...
Qc8 {[%clk 0:00:50]} 31. f3 {[%clk 0:00:29.8]} 31... e3 {[%clk 0:00:41.8]} 32.
Nde4 {[%clk 0:00:28.9]} 32... Qf8 {[%clk 0:00:31.4]} 33. Bc2 {[%clk 0:00:26.3]}
33... Ne8 {[%clk 0:00:22.5]} 34. b5 {[%clk 0:00:24.2]} 34... Nef6 {[%clk
0:00:20.3]} 35. Nxf6+ {[%clk 0:00:19.4]} 35... Rxf6 {[%clk 0:00:21.2]} 36. Bxg6
{[%clk 0:00:16.3]} 36... Rxg6 {[%clk 0:00:21.6]} 37. Ne4 {[%clk 0:00:17.2]}
37... Rxe4 {[%clk 0:00:21.4]} 38. fxe4 {[%clk 0:00:13.9]} 38... Ng5 {[%clk
0:00:22.3]} 39. Rf3 {[%clk 0:00:11.2]} 39... Qe7 {[%clk 0:00:20.1]} 40. Rxf4
{[%clk 0:00:09.4]} 40... Qe5 {[%clk 0:00:15.3]} 41. Qg3 {[%clk 0:00:09.6]} 41...
Nxe4 {[%clk 0:00:14.8]} 42. Qxe3 {[%clk 0:00:08.6]} 42... Nc3 {[%clk 0:00:07.8]}
43. Qxe5 {[%clk 0:00:08.5]} 43... dxe5 {[%clk 0:00:08.7]} 44. Rff2 {[%clk
0:00:08.6]} 44... Nxa2 {[%clk 0:00:08.5]} 45. Rxa2 {[%clk 0:00:09.5]} 45... e4
{[%clk 0:00:09.4]} 46. bxa6 {[%clk 0:00:09.5]} 46... bxa6 {[%clk 0:00:09.2]} 47.
Kg3 {[%clk 0:00:09.7]} 47... c6 {[%clk 0:00:09.4]} 48. Kf4 {[%clk 0:00:10]}
48... cxd5 {[%clk 0:00:10.3]} 49. cxd5 {[%clk 0:00:10.9]} 49... Rf6+ {[%clk
0:00:10.8]} 50. Kxe4 {[%clk 0:00:11.2]} 50... Rf1 {[%clk 0:00:11.7]} 51. Rd2
{[%clk 0:00:10.4]} 51... Kf7 {[%clk 0:00:12.6]} 52. d6 {[%clk 0:00:10.5]} 52...
Ke8 {[%clk 0:00:13.5]} 53. d7+ {[%clk 0:00:10.8]} 53... Kd8 {[%clk 0:00:14.4]}
54. h4 {[%clk 0:00:10.9]} 54... Re1+ {[%clk 0:00:14.8]} 55. Kf5 {[%clk 0:00:11]}
55... Rf1+ {[%clk 0:00:15.2]} 56. Kg6 {[%clk 0:00:11.3]} 56... Rg1 {[%clk
0:00:15.2]} 57. g5 {[%clk 0:00:11.6]} 57... Ra1 {[%clk 0:00:16.1]} 58. h5 {[%clk
0:00:11.4]} 58... Rb1 {[%clk 0:00:17]} 59. h6 {[%clk 0:00:12.3]} 59... Re1
{[%clk 0:00:16.8]} 60. h7 {[%clk 0:00:12.3]} 60... Re6+ {[%clk 0:00:17.7]} 61.
Kh5 {[%clk 0:00:12.6]} 61... Re5 {[%clk 0:00:17.5]} 62. h8=Q+ {[%clk 0:00:12.4]}
62... Re8 {[%clk 0:00:17]} 63. Qxe8+ {[%clk 0:00:11.9]} 1-0

[Event "*** Titled Tuesday Blitz"]
[Site "Chess.com"]
[Date "2020.12.29"]
[Round "5"]
[White "jens1102"]
[Black "PotapovaM"]
[Result "0-1"]
[WhiteElo "2375"]
[BlackElo "2548"]
[TimeControl "180+1"]
[EndTime "10:55:49 PST"]
[Termination "PotapovaM won by checkmate"]

1. Nf3 {[%clk 0:02:57.4]} 1... d5 {[%clk 0:02:59.2]} 2. d4 {[%clk 0:02:53.7]}
2... Nf6 {[%clk 0:02:59.2]} 3. c4 {[%clk 0:02:54.3]} 3... e6 {[%clk 0:02:59.5]}
4. Nc3 {[%clk 0:02:54.6]} 4... c5 {[%clk 0:02:53.7]} 5. g3 {[%clk 0:02:53.8]}
5... cxd4 {[%clk 0:02:45]} 6. Nxd4 {[%clk 0:02:52.4]} 6... e5 {[%clk 0:02:39]}
7. Nf3 {[%clk 0:02:45.2]} 7... d4 {[%clk 0:02:36.2]} 8. Nb1 {[%clk 0:02:34.2]}
8... Nc6 {[%clk 0:02:34.7]} 9. Bg2 {[%clk 0:02:31.2]} 9... e4 {[%clk 0:02:32]}
10. Ng5 {[%clk 0:02:27.7]} 10... e3 {[%clk 0:02:14.2]} 11. O-O {[%clk
0:02:19.6]} 11... h6 {[%clk 0:02:12.3]} 12. Nf3 {[%clk 0:02:04.6]} 12... exf2+
{[%clk 0:02:12]} 13. Rxf2 {[%clk 0:02:04.8]} 13... Bc5 {[%clk 0:02:12.1]} 14. a3
{[%clk 0:01:16.8]} 14... Ng4 {[%clk 0:02:06.5]} 15. Rf1 {[%clk 0:01:14.9]} 15...
d3+ {[%clk 0:02:06.3]} 16. Kh1 {[%clk 0:01:12.8]} 16... Nf2+ {[%clk 0:01:52.4]}
17. Rxf2 {[%clk 0:01:13]} 17... Bxf2 {[%clk 0:01:52.2]} 18. exd3 {[%clk
0:01:13.8]} 18... O-O {[%clk 0:01:51.7]} 19. Nc3 {[%clk 0:01:14.2]} 19... Bf5
{[%clk 0:01:48.7]} 20. Nd5 {[%clk 0:01:10.5]} 20... Ne7 {[%clk 0:01:43.7]} 21.
Nxe7+ {[%clk 0:00:55.3]} 21... Qxe7 {[%clk 0:01:44.6]} 22. Bf4 {[%clk
0:00:55.2]} 22... Rad8 {[%clk 0:01:35.8]} 23. d4 {[%clk 0:00:43.4]} 23... Bg4
{[%clk 0:01:29.6]} 24. d5 {[%clk 0:00:42.5]} 24... Rfe8 {[%clk 0:01:24]} 25. Qd2
{[%clk 0:00:42]} 25... Be3 {[%clk 0:01:19.9]} 26. Bxe3 {[%clk 0:00:27.1]} 26...
Qxe3 {[%clk 0:01:20.8]} 27. Qxe3 {[%clk 0:00:23.8]} 27... Rxe3 {[%clk
0:01:21.7]} 28. Nd4 {[%clk 0:00:20.6]} 28... Rd3 {[%clk 0:01:20.1]} 29. Nb5
{[%clk 0:00:18.7]} 29... a6 {[%clk 0:01:15.9]} 30. Nc3 {[%clk 0:00:18.4]} 30...
Rd2 {[%clk 0:01:16.1]} 31. h3 {[%clk 0:00:18.4]} 31... Bf5 {[%clk 0:01:12.7]}
32. g4 {[%clk 0:00:18.6]} 32... Bd3 {[%clk 0:01:04.7]} 33. c5 {[%clk 0:00:19]}
33... Rxb2 {[%clk 0:00:58.8]} 34. d6 {[%clk 0:00:19.2]} 34... Rc2 {[%clk
0:00:54.3]} 35. Nd5 {[%clk 0:00:18.7]} 35... Rxc5 {[%clk 0:00:51.1]} 36. Ne7+
{[%clk 0:00:19]} 36... Kf8 {[%clk 0:00:49.9]} 37. Rd1 {[%clk 0:00:14.4]} 37...
Rxd6 {[%clk 0:00:47.4]} 38. Nf5 {[%clk 0:00:14.8]} 38... Rd7 {[%clk 0:00:35.3]}
39. Ne3 {[%clk 0:00:14.7]} 39... b5 {[%clk 0:00:31.6]} 40. Rd2 {[%clk
0:00:13.6]} 40... a5 {[%clk 0:00:27.7]} 41. Rb2 {[%clk 0:00:11.3]} 41... g6
{[%clk 0:00:24]} 42. Kg1 {[%clk 0:00:11.7]} 42... Kg7 {[%clk 0:00:21.8]} 43. Kf2
{[%clk 0:00:11.6]} 43... Bc4 {[%clk 0:00:21.9]} 44. Be4 {[%clk 0:00:09.5]} 44...
Re5 {[%clk 0:00:21.1]} 45. Bc2 {[%clk 0:00:09.3]} 45... Rd2+ {[%clk 0:00:20.3]}
46. Kf3 {[%clk 0:00:09.8]} 46... Re2 {[%clk 0:00:17]} 47. Nxc4 {[%clk
0:00:09.6]} 47... bxc4 {[%clk 0:00:16.6]} 48. Rb5 {[%clk 0:00:07.5]} 48... Rxb5
{[%clk 0:00:15.7]} 49. Kxe2 {[%clk 0:00:07.2]} 49... Rd5 {[%clk 0:00:14]} 50.
Ke3 {[%clk 0:00:07]} 50... c3 {[%clk 0:00:13.4]} 51. Bd3 {[%clk 0:00:05.5]}
51... Kf6 {[%clk 0:00:11.6]} 52. Bc2 {[%clk 0:00:05.9]} 52... Ke5 {[%clk
0:00:11.5]} 53. Bb3 {[%clk 0:00:06.4]} 53... Rd7 {[%clk 0:00:10.3]} 54. Bc2
{[%clk 0:00:06.9]} 54... Rd2 {[%clk 0:00:10.4]} 55. Bb3 {[%clk 0:00:07.4]} 55...
f5 {[%clk 0:00:10.7]} 56. Bf7 {[%clk 0:00:07]} 56... f4+ {[%clk 0:00:09.8]} 57.
Kf3 {[%clk 0:00:07.3]} 57... c2 {[%clk 0:00:10.1]} 58. Bxg6 {[%clk 0:00:07.7]}
58... c1=Q {[%clk 0:00:09.9]} 59. Bc2 {[%clk 0:00:08.6]} 59... Qf1# {[%clk
0:00:09.6]} 0-1

[Event "*** Titled Tuesday Blitz"]
[Site "Chess.com"]
[Date "2020.12.29"]
[Round "5"]
[White "Jean-Claude_Vandal"]
[Black "rychessmaster1"]
[Result "0-1"]
[WhiteElo "2401"]
[BlackElo "2573"]
[TimeControl "180+1"]
[EndTime "10:55:54 PST"]
[Termination "rychessmaster1 won on time"]

1. d4 {[%clk 0:03:00.9]} 1... Nf6 {[%clk 0:02:59.2]} 2. c4 {[%clk 0:03:00.8]}
2... e6 {[%clk 0:02:59.3]} 3. Nf3 {[%clk 0:03:00.4]} 3... b6 {[%clk 0:02:59.3]}
4. g3 {[%clk 0:03:00.2]} 4... Ba6 {[%clk 0:02:59.7]} 5. b3 {[%clk 0:02:59.4]}
5... Bb4+ {[%clk 0:02:59.6]} 6. Bd2 {[%clk 0:02:59.4]} 6... Be7 {[%clk 0:03:00]}
7. Bg2 {[%clk 0:02:59.8]} 7... c6 {[%clk 0:03:00.3]} 8. O-O {[%clk 0:02:59.9]}
8... d5 {[%clk 0:02:59.7]} 9. Ne5 {[%clk 0:02:59.5]} 9... Nfd7 {[%clk
0:02:59.9]} 10. Nxd7 {[%clk 0:02:58.6]} 10... Nxd7 {[%clk 0:03:00.8]} 11. Qc2
{[%clk 0:02:58.1]} 11... O-O {[%clk 0:02:52.1]} 12. e4 {[%clk 0:02:56]} 12...
Rc8 {[%clk 0:02:38.3]} 13. Be3 {[%clk 0:02:17.5]} 13... dxc4 {[%clk 0:01:57]}
14. bxc4 {[%clk 0:02:13.9]} 14... c5 {[%clk 0:01:57.7]} 15. d5 {[%clk
0:02:13.8]} 15... Bf6 {[%clk 0:01:55.4]} 16. Nd2 {[%clk 0:02:11.9]} 16... Bxa1
{[%clk 0:01:49.2]} 17. Rxa1 {[%clk 0:02:09.4]} 17... Qf6 {[%clk 0:01:39.4]} 18.
Rb1 {[%clk 0:02:07.6]} 18... Ne5 {[%clk 0:01:33.2]} 19. a4 {[%clk 0:02:05.2]}
19... Ng4 {[%clk 0:01:27]} 20. Bf4 {[%clk 0:02:02.5]} 20... e5 {[%clk
0:01:24.8]} 21. Qd1 {[%clk 0:02:01.3]} 21... Nxf2 {[%clk 0:01:18.3]} 22. Kxf2
{[%clk 0:02:02.2]} 22... exf4 {[%clk 0:01:18.5]} 23. Qf3 {[%clk 0:02:02.7]}
23... fxg3+ {[%clk 0:01:18.2]} 24. hxg3 {[%clk 0:02:01.8]} 24... Qd4+ {[%clk
0:00:58]} 25. Qe3 {[%clk 0:01:55.9]} 25... Bxc4 {[%clk 0:00:58.2]} 26. Nxc4
{[%clk 0:01:55.5]} 26... Qxc4 {[%clk 0:00:58.5]} 27. a5 {[%clk 0:01:55.3]} 27...
bxa5 {[%clk 0:00:57.2]} 28. Bh3 {[%clk 0:01:53.5]} 28... Rcd8 {[%clk 0:00:53.5]}
29. Rc1 {[%clk 0:01:51]} 29... Qd4 {[%clk 0:00:53]} 30. Rxc5 {[%clk 0:01:50.8]}
30... Qxe3+ {[%clk 0:00:53.2]} 31. Kxe3 {[%clk 0:01:51.7]} 31... a4 {[%clk
0:00:43.5]} 32. Ra5 {[%clk 0:01:51.4]} 32... Rfe8 {[%clk 0:00:43.8]} 33. Kd4
{[%clk 0:01:48]} 33... f6 {[%clk 0:00:36.7]} 34. Rxa4 {[%clk 0:01:44.6]} 34...
Re7 {[%clk 0:00:36.6]} 35. Ra6 {[%clk 0:01:41.8]} 35... Kf7 {[%clk 0:00:35.4]}
36. Bf1 {[%clk 0:01:34.9]} 36... h5 {[%clk 0:00:28.6]} 37. Be2 {[%clk
0:01:30.3]} 37... Kg6 {[%clk 0:00:29.1]} 38. Bd3 {[%clk 0:01:29.5]} 38... Kg5
{[%clk 0:00:28.9]} 39. Be2 {[%clk 0:01:17.8]} 39... Rde8 {[%clk 0:00:28.1]} 40.
Bf3 {[%clk 0:01:17.6]} 40... h4 {[%clk 0:00:25.5]} 41. gxh4+ {[%clk 0:01:16.6]}
41... Kxh4 {[%clk 0:00:26.4]} 42. Ra3 {[%clk 0:01:14.5]} 42... Rd8 {[%clk
0:00:23.6]} 43. Ra1 {[%clk 0:01:10.3]} 43... g5 {[%clk 0:00:23.1]} 44. Rg1
{[%clk 0:01:08.5]} 44... a5 {[%clk 0:00:21.7]} 45. Rg4+ {[%clk 0:01:08.1]} 45...
Kh3 {[%clk 0:00:22.1]} 46. Rg1 {[%clk 0:01:09]} 46... Kh2 {[%clk 0:00:21.9]} 47.
Ra1 {[%clk 0:01:07.2]} 47... Kg3 {[%clk 0:00:21.6]} 48. Ra3 {[%clk 0:01:06.2]}
48... Kf4 {[%clk 0:00:20.4]} 49. Bg2 {[%clk 0:01:04.9]} 49... g4 {[%clk
0:00:20.6]} 50. Rxa5 {[%clk 0:01:02.6]} 50... Rb7 {[%clk 0:00:20.5]} 51. Bf1
{[%clk 0:00:59.7]} 51... g3 {[%clk 0:00:20.3]} 52. Ra2 {[%clk 0:00:59]} 52...
Rb1 {[%clk 0:00:19.9]} 53. Bh3 {[%clk 0:00:58.3]} 53... Rh1 {[%clk 0:00:19.1]}
54. Bg2 {[%clk 0:00:57.6]} 54... Rh2 {[%clk 0:00:19.6]} 55. Kc5 {[%clk
0:00:55.5]} 55... Ke5 {[%clk 0:00:18.3]} 56. Kc6 {[%clk 0:00:54.4]} 56... Rc8+
{[%clk 0:00:15.2]} 57. Kd7 {[%clk 0:00:54.6]} 57... Rc1 {[%clk 0:00:15.5]} 58.
Ke7 {[%clk 0:00:53.3]} 58... Rg1 {[%clk 0:00:14.2]} 59. d6 {[%clk 0:00:53.1]}
59... Rgxg2 {[%clk 0:00:13.5]} 60. d7 {[%clk 0:00:51.8]} 60... Rxa2 {[%clk
0:00:12.9]} 61. d8=Q {[%clk 0:00:50.7]} 61... Ra7+ {[%clk 0:00:13.6]} 62. Qd7
{[%clk 0:00:47.8]} 62... Rxd7+ {[%clk 0:00:13.8]} 63. Kxd7 {[%clk 0:00:48.7]}
63... g2 {[%clk 0:00:14.7]} 64. Kc6 {[%clk 0:00:15.8]} 64... g1=Q {[%clk
0:00:15.6]} 65. Kb5 {[%clk 0:00:12.4]} 65... Rc2 {[%clk 0:00:14.9]} 66. Ka4
{[%clk 0:00:08.2]} 66... Qb1 {[%clk 0:00:15.1]} 0-1

[Event "*** Titled Tuesday Blitz"]
[Site "Chess.com"]
[Date "2020.12.29"]
[Round "5"]
[White "winniethepooh04"]
[Black "2nd_life"]
[Result "0-1"]
[WhiteElo "2239"]
[BlackElo "2483"]
[TimeControl "180+1"]
[EndTime "10:55:55 PST"]
[Termination "2nd_life won by resignation"]

1. e4 {[%clk 0:02:55.5]} 1... e5 {[%clk 0:02:58.1]} 2. Nf3 {[%clk 0:02:55]} 2...
Nc6 {[%clk 0:02:58.1]} 3. Bc4 {[%clk 0:02:53.6]} 3... Bc5 {[%clk 0:02:54.8]} 4.
c3 {[%clk 0:02:52.7]} 4... Nf6 {[%clk 0:02:54.7]} 5. d4 {[%clk 0:02:49.8]} 5...
exd4 {[%clk 0:02:53.9]} 6. cxd4 {[%clk 0:02:49.3]} 6... Bb4+ {[%clk 0:02:53.2]}
7. Nc3 {[%clk 0:02:48.7]} 7... Nxe4 {[%clk 0:02:50.9]} 8. O-O {[%clk 0:02:45]}
8... Bxc3 {[%clk 0:02:49.2]} 9. d5 {[%clk 0:02:44]} 9... Bf6 {[%clk 0:02:46.5]}
10. Re1 {[%clk 0:02:38.5]} 10... Ne7 {[%clk 0:02:45.3]} 11. Rxe4 {[%clk
0:02:36.9]} 11... d6 {[%clk 0:02:45]} 12. Bg5 {[%clk 0:02:34.4]} 12... Bxg5
{[%clk 0:02:43.5]} 13. Nxg5 {[%clk 0:02:34.4]} 13... h6 {[%clk 0:02:41.8]} 14.
Qh5 {[%clk 0:02:33.8]} 14... O-O {[%clk 0:02:20.1]} 15. Rae1 {[%clk 0:02:30]}
15... Ng6 {[%clk 0:01:42.2]} 16. Ne6 {[%clk 0:02:28.9]} 16... fxe6 {[%clk
0:01:26.2]} 17. Qxg6 {[%clk 0:02:25.4]} 17... e5 {[%clk 0:01:17.5]} 18. Rxe5
{[%clk 0:02:21.5]} 18... dxe5 {[%clk 0:00:39.3]} 19. d6+ {[%clk 0:02:20.1]}
19... Kh8 {[%clk 0:00:35.8]} 20. Bd3 {[%clk 0:02:08.8]} 20... Bf5 {[%clk
0:00:35.1]} 21. Bxf5 {[%clk 0:02:02.1]} 21... Rxf5 {[%clk 0:00:34.3]} 22. Qxf5
{[%clk 0:01:59.1]} 22... cxd6 {[%clk 0:00:34.2]} 23. Qf7 {[%clk 0:01:35.6]}
23... Qb6 {[%clk 0:00:21.2]} 24. b3 {[%clk 0:01:34]} 24... Rc8 {[%clk
0:00:20.1]} 25. Rd1 {[%clk 0:01:28.3]} 25... Qd4 {[%clk 0:00:17.3]} 26. Qh5
{[%clk 0:01:21.4]} 26... Qe4 {[%clk 0:00:05.2]} 27. h4 {[%clk 0:01:18.8]} 27...
Rd8 {[%clk 0:00:03.2]} 28. a3 {[%clk 0:00:49.7]} 28... d5 {[%clk 0:00:03.4]} 29.
Rc1 {[%clk 0:00:30.9]} 29... d4 {[%clk 0:00:03.2]} 30. Rc7 {[%clk 0:00:27.7]}
30... Qe1+ {[%clk 0:00:03]} 31. Kh2 {[%clk 0:00:27.5]} 31... Qxf2 {[%clk
0:00:03.5]} 32. Qxe5 {[%clk 0:00:19.7]} 32... Qxh4+ {[%clk 0:00:02.8]} 33. Kg1
{[%clk 0:00:20.2]} 33... Qg5 {[%clk 0:00:01.8]} 34. Qxg5 {[%clk 0:00:15.8]}
34... hxg5 {[%clk 0:00:02.7]} 35. Kf2 {[%clk 0:00:15.8]} 35... d3 {[%clk
0:00:03.1]} 36. Ke1 {[%clk 0:00:16]} 36... Re8+ {[%clk 0:00:02.3]} 37. Kd2
{[%clk 0:00:16.2]} 37... Re2+ {[%clk 0:00:03.2]} 38. Kxd3 {[%clk 0:00:16.7]}
38... Rxg2 {[%clk 0:00:04.1]} 39. Rxb7 {[%clk 0:00:16.9]} 39... a5 {[%clk
0:00:04.1]} 40. Ra7 {[%clk 0:00:16.5]} 40... a4 {[%clk 0:00:04]} 41. Rxa4 {[%clk
0:00:16.2]} 41... Rg3+ {[%clk 0:00:04.9]} 42. Kc4 {[%clk 0:00:15.7]} 42... g4
{[%clk 0:00:05.1]} 43. Ra8+ {[%clk 0:00:12.4]} 43... Kh7 {[%clk 0:00:05]} 44. b4
{[%clk 0:00:12.9]} 44... Rg1 {[%clk 0:00:04.8]} 45. b5 {[%clk 0:00:13.2]} 45...
g3 {[%clk 0:00:04.4]} 46. b6 {[%clk 0:00:12.5]} 46... Rb1 {[%clk 0:00:03.5]} 47.
Re8 {[%clk 0:00:06.4]} 47... g2 {[%clk 0:00:03.6]} 48. b7 {[%clk 0:00:01.7]}
48... g1=Q {[%clk 0:00:03.8]} 49. b8=Q {[%clk 0:00:01.7]} 49... Rxb8 {[%clk
0:00:04.3]} 50. Rxb8 {[%clk 0:00:02]} 50... Qc1+ {[%clk 0:00:04.7]} 51. Kd5
{[%clk 0:00:01.5]} 51... Qxa3 {[%clk 0:00:04.7]} 52. Kc6 {[%clk 0:00:01.8]}
52... Qc3+ {[%clk 0:00:04.1]} 53. Kd7 {[%clk 0:00:02.5]} 53... Qd4+ {[%clk
0:00:04.1]} 54. Kc8 {[%clk 0:00:03.4]} 54... Qc5+ {[%clk 0:00:03.9]} 55. Kd8
{[%clk 0:00:03.6]} 55... Qd6+ {[%clk 0:00:04.1]} 56. Kc8 {[%clk 0:00:04.2]}
56... Qxb8+ {[%clk 0:00:04.3]} 57. Kxb8 {[%clk 0:00:03.3]} 57... g5 {[%clk
0:00:05.2]} 58. Kc7 {[%clk 0:00:03.8]} 58... g4 {[%clk 0:00:06.1]} 59. Kd6
{[%clk 0:00:04.2]} 59... g3 {[%clk 0:00:07]} 60. Ke7 {[%clk 0:00:04.9]} 60... g2
{[%clk 0:00:07.9]} 0-1